fUSD/lending_fUSD_20240117
["ID","MTS","AMOUNT","RATE_DAILY","PERIOD"]
[311880009,1705486239822,-705.8,0.00021917,2]
[311880011,1705486239832,-1083.67,0.00021917,2]
[311880013,1705486239842,-500.0,0.00021917,2]
[311880015,1705486239852,-1092.6,0.00021917,2]
[311880018,1705486239861,-712.72,0.00021917,2]
[311880020,1705486239871,-575.1,0.00021917,2]
[311880022,1705486239881,-500.0,0.00021917,2]
[311880024,1705486239890,-500.0,0.00021917,2]
[311880026,1705486239900,-500.0,0.00021917,2]
[311880028,1705486239910,-500.0,0.00021917,2]
[311880030,1705486239920,-589.16,0.00021917,2]
[311880032,1705486239930,-1216.68,0.00021917,2]
[311880034,1705486239940,-500.0,0.00021917,2]
[311880036,1705486239950,-500.0,0.00021917,2]
[311880038,1705486239959,-601.73084711,0.00021917,2]
[311880040,1705486239969,-500.0,0.00021917,2]
[311880043,1705486239979,-506.69822752,0.00021917,2]
[311880045,1705486239989,-565.27045575,0.00021917,2]
[311880047,1705486239999,-500.0,0.00021917,2]
[311880049,1705486240008,-500.0,0.00021917,2]
[311880051,1705486240018,-500.0,0.00021917,2]
[311880053,1705486240028,-500.0,0.00021917,2]
[311880056,1705486240037,-557.03,0.00021917,2]
[311880058,1705486240047,-500.0,0.00021917,2]
[311880060,1705486240056,-697.88,0.00021917,2]
[311880062,1705486240065,-619.29,0.00021917,2]
[311880064,1705486240074,-500.0,0.00021917,2]
[311880066,1705486240084,-500.0,0.00021917,2]
[311880068,1705486240094,-1154.72,0.00021917,2]
[311880070,1705486240103,-675.54,0.00021917,2]
[311880072,1705486240113,-867.72,0.00021917,2]
[311880074,1705486240123,-500.0,0.00021917,2]
[311880076,1705486240137,-500.0,0.00021917,2]
[311880078,1705486240146,-1676.28,0.00021917,2]
[311880080,1705486240155,-500.0,0.00021917,2]
[311880082,1705486240165,-500.0,0.00021917,2]
[311880084,1705486240175,-553.14,0.00021917,2]
[311880086,1705486240185,-500.0,0.00021917,2]
[311880088,1705486240195,-1236.53,0.00021917,2]
[311880090,1705486240204,-578.78,0.00021917,2]
[311880092,1705486240214,-500.0,0.00021917,2]
[311880094,1705486240225,-500.0,0.00021917,2]
[311880096,1705486240237,-500.0,0.00021917,2]
[311880099,1705486240247,-500.0,0.00021917,2]
[311880101,1705486240257,-1138.4,0.00021917,2]
[311880103,1705486240266,-500.0,0.00021917,2]
[311880105,1705486240276,-500.0,0.00021917,2]
[311880107,1705486240286,-500.0,0.00021917,2]
[311880109,1705486240295,-535.5,0.00021917,2]
[311880111,1705486240305,-500.0,0.00021917,2]
[311880113,1705486240316,-500.0,0.00021917,2]
[311880115,1705486240326,-1147.08,0.00021917,2]
[311880117,1705486240336,-575.50757298,0.00021917,2]
[311880119,1705486240345,-500.0,0.00021917,2]
[311880121,1705486240355,-500.0,0.00021917,2]
[311880123,1705486240365,-656.22,0.00021917,2]
[311880125,1705486240374,-500.0,0.00021917,2]
[311880128,1705486240384,-500.0,0.00021917,2]
[311880130,1705486240394,-1510.19,0.00021917,2]
[311880132,1705486240404,-500.0,0.00021917,2]
[311880134,1705486240415,-1017.56,0.00021917,2]
[311880136,1705486240424,-500.0,0.00021917,2]
[311880138,1705486240434,-953.45,0.00021917,2]
[311880140,1705486240443,-508.55829176,0.00021917,2]
[311880142,1705486240454,-500.0,0.00021917,2]
[311880144,1705486240464,-500.0,0.00021917,2]
[311880146,1705486240473,-500.0,0.00021917,2]
[311880148,1705486240484,-500.0,0.00021917,2]
[311880150,1705486240494,-509.29,0.00021917,2]
[311880153,1705486240505,-500.0,0.00021917,2]
[311880155,1705486240514,-500.0,0.00021917,2]
[311880157,1705486240524,-1246.68,0.00021917,2]
[311880159,1705486240534,-913.16,0.00021917,2]
[311880161,1705486240545,-500.0,0.00021917,2]
[311880163,1705486240555,-891.53,0.00021917,2]
[311880165,1705486240566,-713.39,0.00021917,2]
[311880167,1705486240576,-500.0,0.00021917,2]
[311880169,1705486240586,-500.0,0.00021917,2]
[311880171,1705486240596,-500.0,0.00021917,2]
[311880173,1705486240607,-500.0,0.00021917,2]
[311880175,1705486240617,-536.85,0.00021917,2]
[311880177,1705486240627,-510.43110097,0.00021917,2]
[311880179,1705486240637,-897.89,0.00021917,2]
[311880182,1705486240647,-500.0,0.00021917,2]
[311880184,1705486240657,-848.71,0.00021917,2]
[311880186,1705486240671,-500.0,0.00021917,2]
[311880188,1705486240680,-500.0,0.00021917,2]
[311880190,1705486240690,-500.0,0.00021917,2]
[311880192,1705486240700,-500.0,0.00021917,2]
[311880194,1705486240710,-500.0,0.00021917,2]
[311880196,1705486240721,-500.0,0.00021917,2]
[311880198,1705486240730,-1281.03,0.00021917,2]
[311880200,1705486240740,-500.0,0.00021917,2]
[311880202,1705486240751,-500.0,0.00021917,2]
[311880204,1705486240761,-500.0,0.00021917,2]
[311880206,1705486240771,-564.8947193,0.00021917,2]
[311880209,1705486240781,-500.0,0.00021917,2]
[311880211,1705486240791,-839.14,0.00021917,2]
[311880213,1705486240801,-516.27,0.00021917,2]
[311880215,1705486240811,-500.0,0.00021917,2]
[311880217,1705486240821,-500.0,0.00021917,2]
[311880219,1705486240830,-1095.85,0.00021917,2]
[311880221,1705486240840,-500.0,0.00021917,2]
[311880223,1705486240850,-500.0,0.00021917,2]
[311880225,1705486240860,-500.0,0.00021917,2]
[311880227,1705486240870,-500.0,0.00021917,2]
[311880229,1705486240880,-1050.69,0.00021917,2]
[311880266,1705486241218,-928.42,0.00021917,2]
[311880267,1705486241249,-640.78,0.00021917,2]
[311880268,1705486241259,-500.0,0.00021917,2]
[311880269,1705486241269,-500.0,0.00021917,2]
[311880270,1705486241278,-500.0,0.00021917,2]
[311880271,1705486241287,-500.0,0.00021917,2]
[311880273,1705486241297,-744.46,0.00021917,2]
[311880275,1705486241306,-754.72,0.00021917,2]
[311880277,1705486241317,-500.0,0.00021917,2]
[311880279,1705486241327,-500.0,0.00021917,2]
[311880281,1705486241337,-648.55,0.00021917,2]
[311880283,1705486241347,-198.35765548,0.00021917,2]
[311880285,1705486241357,-572.47,0.00021917,2]
[311880287,1705486241367,-971.54,0.00021917,2]
[311880289,1705486241377,-810.47,0.00021917,2]
[311880291,1705486241386,-538.65,0.00021917,2]
[311880293,1705486241395,-500.0,0.00021917,2]
[311880295,1705486241405,-633.0,0.00021917,2]
[311880297,1705486241416,-500.0,0.00021917,2]
[311880299,1705486241425,-325.64499369,0.00021917,2]
[311880302,1705486241435,-730.12,0.00021917,2]
[311880304,1705486241444,-1306.11,0.00021917,2]
[311880306,1705486241453,-500.0,0.00021917,2]
[311880308,1705486241463,-1040.13,0.00021917,2]
[311880310,1705486241473,-994.92,0.00021917,2]
[311880312,1705486241482,-500.0,0.00021917,2]
[311880314,1705486241492,-503.5,0.00021917,2]
[311880316,1705486241501,-725.29,0.00021917,2]
[311880318,1705486241510,-893.59,0.00021917,2]
[311880320,1705486241520,-500.0,0.00021917,2]
[311880322,1705486241529,-842.86,0.00021917,2]
[311880324,1705486241538,-748.88,0.00021917,2]
[311880326,1705486241547,-954.58,0.00021917,2]
[311880328,1705486241557,-500.0,0.00021917,2]
[311880330,1705486241566,-505.12443689,0.00021917,2]
[311880332,1705486241575,-502.66789447,0.00021917,2]
[311880334,1705486241585,-812.59,0.00021917,2]
[311880336,1705486241594,-1160.11,0.00021917,2]
[311880338,1705486241603,-500.0,0.00021917,2]
[311880340,1705486241613,-1176.54,0.00021917,2]
[311880342,1705486241622,-776.41,0.00021917,2]
[311880344,1705486241631,-500.0,0.00021917,2]
[311880346,1705486241641,-954.54,0.00021917,2]
[311880348,1705486241651,-500.0,0.00021917,2]
[311880350,1705486241660,-504.15,0.00021917,2]
[311880353,1705486241671,-654.18,0.00021917,2]
[311880355,1705486241681,-500.0,0.00021917,2]
[311880357,1705486241690,-500.0,0.00021917,2]
[311880359,1705486241699,-517.43,0.00021917,2]
[311880361,1705486241709,-500.0,0.00021917,2]
[311880363,1705486241718,-500.0,0.00021917,2]
[311880365,1705486241728,-903.78,0.00021917,2]
[311880367,1705486241738,-500.0,0.00021917,2]
[311880369,1705486241748,-500.0,0.00021917,2]
[311880371,1705486241757,-500.0,0.00021917,2]
[311880373,1705486241767,-578.44,0.00021917,2]
[311880375,1705486241776,-500.0,0.00021917,2]
[311880377,1705486241786,-484.58695073,0.00021917,2]
[311880379,1705486241795,-1812.81,0.00021917,2]
[311880381,1705486241804,-500.0,0.00021917,2]
[311880383,1705486241813,-500.0,0.00021917,2]
[311880385,1705486241823,-1165.97,0.00021917,2]
[311880387,1705486241832,-500.0,0.00021917,2]
[311880389,1705486241841,-752.27,0.00021917,2]
[311880391,1705486241850,-500.0,0.00021917,2]
[311880393,1705486241860,-505.99677516,0.00021917,2]
[311880395,1705486241869,-843.14,0.00021917,2]
[311880397,1705486241878,-500.0,0.00021917,2]
[311880399,1705486241887,-902.52,0.00021917,2]
[311880401,1705486241897,-1033.54,0.00021917,2]
[311880403,1705486241906,-874.32,0.00021917,2]
[311880405,1705486241918,-500.0,0.00021917,2]
[311880407,1705486241928,-500.0,0.00021917,2]
[311880409,1705486241937,-964.13,0.00021917,2]
[311880411,1705486241947,-1249.32,0.00021917,2]
[311880413,1705486241956,-500.0,0.00021917,2]
[311880415,1705486241966,-641.45,0.00021917,2]
[311880417,1705486241975,-506.49945179,0.00021917,2]
[311880419,1705486241985,-431.46893811,0.00021917,2]
[311880422,1705486241994,-808.09,0.00021917,2]
[311880424,1705486242006,-500.0,0.00021917,2]
[311880426,1705486242015,-500.0,0.00021917,2]
[311880428,1705486242025,-500.0,0.00021917,2]
[311880430,1705486242034,-188.71458974,0.00021917,2]
[311880432,1705486242043,-500.0,0.00021917,2]
[311880434,1705486242053,-500.0,0.00021917,2]
[311880436,1705486242062,-500.0,0.00021917,2]
[311880438,1705486242072,-500.0,0.00021917,2]
[311880440,1705486242082,-740.68,0.00021917,2]
[311880442,1705486242092,-500.0,0.00021917,2]
[311880444,1705486242101,-202.94454642,0.00021917,2]
[311880446,1705486242111,-720.91,0.00021917,2]
[311880448,1705486242122,-1721.93,0.00021917,2]
[311880450,1705486242132,-500.0,0.00021917,2]
[311880452,1705486242142,-500.0,0.00021917,2]
[311880454,1705486242151,-500.0,0.00021917,2]
[311880456,1705486242160,-500.0,0.00021917,2]
[311880458,1705486242174,-1000.0,0.00021917,2]
[311880461,1705486242184,-500.0,0.00021917,2]
[311880463,1705486242194,-262.21185662,0.00021917,2]
[311880465,1705486242205,-500.0,0.00021917,2]
[311880467,1705486242214,-164.59956867,0.00021917,2]
[311880469,1705486242224,-500.0,0.00021917,2]
[311880471,1705486242234,-550.01,0.00021917,2]
[311880473,1705486242244,-500.0,0.00021917,2]
[311880475,1705486242253,-731.28,0.00021917,2]
[311880477,1705486242262,-1153.45,0.00021917,2]
[311880479,1705486242271,-500.0,0.00021917,2]
[311880481,1705486242282,-500.0,0.00021917,2]
[311880483,1705486242291,-500.0,0.00021917,2]
[311880485,1705486242301,-500.0,0.00021917,2]
[311880487,1705486242310,-500.0,0.00021917,2]
[311880489,1705486242321,-500.0,0.00021917,2]
[311880491,1705486242330,-529.19531817,0.00021917,2]
[311880493,1705486242339,-1319.7,0.00021917,2]
[311880495,1705486242349,-500.0,0.00021917,2]
[311880497,1705486242358,-9744.36,0.00021917,2]
[311880499,1705486242368,-841.98,0.00021917,2]
[311880501,1705486242377,-500.0,0.00021917,2]
[311880503,1705486242386,-963.21,0.00021917,2]
[311880505,1705486242395,-565.13,0.00021917,2]
[311880507,1705486242405,-500.0,0.00021917,2]
[311880509,1705486242417,-500.0,0.00021917,2]
[311880511,1705486242427,-500.0,0.00021917,2]
[311880513,1705486242436,-500.0,0.00021917,2]
[311880515,1705486242445,-981.89,0.00021917,2]
[311880518,1705486242454,-500.0,0.00021917,2]
[311880521,1705486242464,-976.96,0.00021917,2]
[311880524,1705486242473,-1258.27,0.00021917,2]
[311880527,1705486242483,-500.0,0.00021917,2]
[311880530,1705486242493,-625.93,0.00021917,2]
[311880533,1705486242503,-500.0,0.00021917,2]
[311880536,1705486242512,-737.73,0.00021917,2]
[311880539,1705486242523,-500.0,0.00021917,2]
[311880542,1705486242533,-500.0,0.00021917,2]
[311880545,1705486242544,-500.0,0.00021917,2]
[311880549,1705486242555,-500.0,0.00021917,2]
[311880552,1705486242565,-807.46,0.00021917,2]
[311880555,1705486242575,-593.76,0.00021917,2]
[311880558,1705486242586,-1000.0,0.00021917,2]
[311880561,1705486242596,-500.0,0.00021917,2]
[311880564,1705486242606,-983.96,0.00021917,2]
[311880566,1705486242617,-681.02,0.00021917,2]
[311880568,1705486242627,-500.0,0.00021917,2]
[311880570,1705486242638,-500.0,0.00021917,2]
[311880573,1705486242650,-575.2,0.00021917,2]
[311880575,1705486242661,-500.0,0.00021917,2]
[311880578,1705486242677,-500.0,0.00021917,2]
[311880580,1705486242688,-500.0,0.00021917,2]
[311880582,1705486242698,-500.0,0.00021917,2]
[311880584,1705486242708,-500.0,0.00021917,2]
[311880586,1705486242719,-655.79,0.00021917,2]
[311880588,1705486242729,-864.02,0.00021917,2]
[311880590,1705486242740,-500.0,0.00021917,2]
[311880592,1705486242750,-500.0,0.00021917,2]
[311880594,1705486242759,-500.0,0.00021917,2]
[311880596,1705486242768,-500.0,0.00021917,2]
[311880598,1705486242777,-737.65,0.00021917,2]
[311880600,1705486242787,-500.0,0.00021917,2]
[311880602,1705486242796,-1146.33,0.00021917,2]
[311880605,1705486242806,-500.0,0.00021917,2]
[311880607,1705486242816,-500.0,0.00021917,2]
[311880609,1705486242825,-562.06,0.00021917,2]
[311880611,1705486242835,-500.0,0.00021917,2]
[311880613,1705486242844,-500.0,0.00021917,2]
[311880615,1705486242853,-500.0,0.00021917,2]
[311880617,1705486242862,-816.48,0.00021917,2]
[311880619,1705486242871,-500.0,0.00021917,2]
[311880621,1705486242880,-500.0,0.00021917,2]
[311880623,1705486242890,-500.0,0.00021917,2]
[311880625,1705486242899,-500.0,0.00021917,2]
[311880627,1705486242908,-932.01,0.00021917,2]
[311880629,1705486242921,-500.0,0.00021917,2]
[311880631,1705486242931,-635.75,0.00021917,2]
[311880633,1705486242940,-500.0,0.00021917,2]
[311880635,1705486242950,-500.0,0.00021917,2]
[311880637,1705486242960,-694.36,0.00021917,2]
[311880639,1705486242970,-655.95,0.00021917,2]
[311880640,1705486242979,-500.0,0.00021917,2]
[311880641,1705486242988,-500.0,0.00021917,2]
[311880642,1705486242997,-643.14033598,0.00021917,2]
[311880643,1705486243006,-167.45983006,0.00021917,2]
[311880644,1705486243015,-500.0,0.00021917,2]
[311880645,1705486243024,-500.0,0.00021917,2]
[311880646,1705486243033,-500.0,0.00021917,2]
[311880648,1705486243042,-519.73307395,0.00021917,2]
[311880649,1705486243052,-300.0,0.00021917,2]
[311880651,1705486243061,-569.59,0.00021917,2]
[311880653,1705486243070,-500.0,0.00021917,2]
[311880655,1705486243079,-926.16,0.00021917,2]
[311880657,1705486243088,-990.47,0.00021917,2]
[311880660,1705486243097,-702.06,0.00021917,2]
[311880662,1705486243107,-500.0,0.00021917,2]
[311880664,1705486243116,-537.8,0.00021917,2]
[311880666,1705486243126,-500.0,0.00021917,2]
[311880668,1705486243135,-972.92,0.00021917,2]
[311880670,1705486243144,-500.0,0.00021917,2]
[311880672,1705486243153,-500.0,0.00021917,2]
[311880674,1705486243162,-500.0,0.00021917,2]
[311880676,1705486243175,-830.9,0.00021917,2]
[311880678,1705486243184,-1184.64,0.00021917,2]
[311880680,1705486243193,-500.0,0.00021917,2]
[311880682,1705486243203,-1149.08,0.00021917,2]
[311880684,1705486243212,-871.0,0.00021917,2]
[311880686,1705486243222,-739.17,0.00021917,2]
[311880688,1705486243231,-500.0,0.00021917,2]
[311880690,1705486243244,-500.0,0.00021917,2]
[311880692,1705486243254,-500.0,0.00021917,2]
[311880693,1705486243263,-500.0,0.00021917,2]
[311880696,1705486243273,-500.0,0.00021917,2]
[311880698,1705486243285,-500.0,0.00021917,2]
[311880700,1705486243294,-1037.23,0.00021917,2]
[311880701,1705486243304,-928.08,0.00021917,2]
[311880704,1705486243314,-500.0,0.00021917,2]
[311880706,1705486243327,-500.0,0.00021917,2]
[311880708,1705486243336,-500.0,0.00021917,2]
[311880710,1705486243345,-713.5,0.00021917,2]
[311880712,1705486243354,-500.0,0.00021917,2]
[311880714,1705486243363,-906.24,0.00021917,2]
[311880716,1705486243372,-947.23,0.00021917,2]
[311880718,1705486243382,-500.0,0.00021917,2]
[311880720,1705486243391,-500.0,0.00021917,2]
[311880722,1705486243400,-1382.0,0.00021917,2]
[311880724,1705486243409,-500.0,0.00021917,2]
[311880726,1705486243424,-591.51,0.00021917,2]
[311880728,1705486243433,-662.77,0.00021917,2]
[311880730,1705486243445,-500.0,0.00021917,2]
[311880732,1705486243454,-500.0,0.00021917,2]
[311880734,1705486243463,-997.93,0.00021917,2]
[311880736,1705486243472,-634.19,0.00021917,2]
[311880738,1705486243481,-500.0,0.00021917,2]
[311880740,1705486243490,-2017.9,0.00021917,2]
[311880742,1705486243500,-500.0,0.00021917,2]
[311880744,1705486243509,-500.0,0.00021917,2]
[311880746,1705486243518,-1329.22,0.00021917,2]
[311880748,1705486243528,-500.0,0.00021917,2]
[311880750,1705486243537,-500.0,0.00021917,2]
[311880752,1705486243547,-500.0,0.00021917,2]
[311880754,1705486243556,-1007.1,0.00021917,2]
[311880756,1705486243566,-500.0,0.00021917,2]
[311880758,1705486243575,-500.0,0.00021917,2]
[311880760,1705486243584,-500.0,0.00021917,2]
[311880763,1705486243599,-500.0,0.00021917,2]
[311880765,1705486243608,-465.3156657,0.00021917,2]
[311880767,1705486243618,-1409.63,0.00021917,2]
[311880769,1705486243627,-1006.35,0.00021917,2]
[311880771,1705486243636,-500.0,0.00021917,2]
[311880773,1705486243645,-500.0,0.00021917,2]
[311880775,1705486243654,-500.0,0.00021917,2]
[311880777,1705486243663,-764.07,0.00021917,2]
[311880779,1705486243675,-500.0,0.00021917,2]
[311880781,1705486243685,-500.0,0.00021917,2]
[311880783,1705486243694,-500.0,0.00021917,2]
[311880785,1705486243703,-733.38,0.00021917,2]
[311880787,1705486243713,-699.29,0.00021917,2]
[311880789,1705486243722,-1021.97,0.00021917,2]
[311880791,1705486243732,-1224.33,0.00021917,2]
[311880793,1705486243741,-500.0,0.00021917,2]
[311880795,1705486243754,-500.0,0.00021917,2]
[311880797,1705486243764,-1061.05,0.00021917,2]
[311880799,1705486243773,-500.0,0.00021917,2]
[311880801,1705486243782,-1000.2,0.00021917,2]
[311880803,1705486243792,-500.0,0.00021917,2]
[311880805,1705486243801,-624.21,0.00021917,2]
[311880807,1705486243810,-500.0,0.00021917,2]
[311880809,1705486243821,-500.0,0.00021917,2]
[311880811,1705486243830,-500.0,0.00021917,2]
[311880814,1705486243840,-500.0,0.00021917,2]
[311880816,1705486243849,-764.15,0.00021917,2]
[311880818,1705486243859,-1657.24,0.00021917,2]
[311880820,1705486243869,-500.0,0.00021917,2]
[311880822,1705486243878,-500.0,0.00021917,2]
[311880824,1705486243887,-547.62,0.00021917,2]
[311880826,1705486243896,-500.0,0.00021917,2]
[311880828,1705486243906,-596.07,0.00021917,2]
[311880830,1705486243917,-622.52,0.00021917,2]
[311880832,1705486243926,-2135.45,0.00021917,2]
[311880834,1705486243935,-500.0,0.00021917,2]
[311880836,1705486243944,-507.45980388,0.00021917,2]
[311880838,1705486243954,-500.0,0.00021917,2]
[311880840,1705486243963,-500.0,0.00021917,2]
[311880842,1705486243973,-612.23,0.00021917,2]
[311880844,1705486243982,-1145.74,0.00021917,2]
[311880846,1705486243991,-500.0,0.00021917,2]
[311880848,1705486244000,-770.79,0.00021917,2]
[311880850,1705486244009,-500.0,0.00021917,2]
[311880852,1705486244019,-500.0,0.00021917,2]
[311880854,1705486244031,-1264.58,0.00021917,2]
[311880856,1705486244041,-436.41154468,0.00021917,2]
[311880858,1705486244050,-1076.49,0.00021917,2]
[311880860,1705486244060,-709.54,0.00021917,2]
[311880862,1705486244069,-500.0,0.00021917,2]
[311880864,1705486244078,-534.23,0.00021917,2]
[311880866,1705486244088,-500.0,0.00021917,2]
[311880868,1705486244097,-500.0,0.00021917,2]
[311880870,1705486244106,-768.44,0.00021917,2]
[311880872,1705486244116,-500.0,0.00021917,2]
[311880874,1705486244125,-500.0,0.00021917,2]
[311880876,1705486244135,-500.0,0.00021917,2]
[311880879,1705486244146,-1119.85,0.00021917,2]
[311880882,1705486244161,-598.86,0.00021917,2]
[311880884,1705486244177,-500.0,0.00021917,2]
[311880886,1705486244189,-834.0,0.00021917,2]
[311880889,1705486244202,-1871.35,0.00021917,2]
[311880891,1705486244215,-500.0,0.00021917,2]
[311880894,1705486244228,-500.0,0.00021917,2]
[311880896,1705486244244,-500.0,0.00021917,2]
[311880899,1705486244258,-2340.29,0.00021917,2]
[311880901,1705486244271,-500.0,0.00021917,2]
[311880903,1705486244282,-500.0,0.00021917,2]
[311880906,1705486244294,-994.99,0.00021917,2]
[311880908,1705486244307,-1162.94,0.00021917,2]
[311880911,1705486244321,-516.3554012,0.00021917,2]
[311880913,1705486244334,-500.0,0.00021917,2]
[311880915,1705486244347,-1395.24,0.00021917,2]
[311880918,1705486244362,-500.0,0.00021917,2]
[311880920,1705486244373,-500.0,0.00021917,2]
[311880922,1705486244383,-1323.09,0.00021917,2]
[311880925,1705486244398,-1223.97,0.00021917,2]
[311880929,1705486244426,-500.0,0.00021917,2]
[311880932,1705486244449,-500.0,0.00021917,2]
[311880935,1705486244465,-500.0,0.00021917,2]
[311880938,1705486244479,-500.0,0.00021917,2]
[311880940,1705486244494,-500.0,0.00021917,2]
[311880943,1705486244509,-2398.37,0.00021917,2]
[311880946,1705486244525,-500.0,0.00021917,2]
[311880949,1705486244541,-999.19,0.00021917,2]
[311880951,1705486244556,-500.0,0.00021917,2]
[311880954,1705486244571,-500.0,0.00021917,2]
[311880956,1705486244582,-500.0,0.00021917,2]
[311880957,1705486244592,-464.40784846,0.00021917,2]
[311880958,1705486244603,-1303.64,0.00021917,2]
[311880959,1705486244616,-500.0,0.00021917,2]
[311880960,1705486244628,-500.0,0.00021917,2]
[311880961,1705486244641,-500.0,0.00021917,2]
[311880963,1705486244660,-530.28,0.00021917,2]
[311880966,1705486244673,-486.24922422,0.00021917,2]
[311880968,1705486244683,-500.0,0.00021917,2]
[311880970,1705486244694,-2465.24,0.00021917,2]
[311880972,1705486244708,-500.0,0.00021917,2]
[311880975,1705486244720,-500.0,0.00021917,2]
[311880977,1705486244734,-1078.8,0.00021917,2]
[311880980,1705486244748,-566.79,0.00021917,2]
[311880982,1705486244763,-692.98,0.00021917,2]
[311880985,1705486244776,-1047.32,0.00021917,2]
[311880987,1705486244791,-500.0,0.00021917,2]
[311880990,1705486244806,-500.0,0.00021917,2]
[311880993,1705486244820,-1346.35,0.00021917,2]
[311880995,1705486244834,-982.22,0.00021917,2]
[311880997,1705486244847,-500.0,0.00021917,2]
[311881000,1705486244862,-500.0,0.00021917,2]
[311881003,1705486244874,-500.0,0.00021917,2]
[311881005,1705486244888,-575.92,0.00021917,2]
[311881007,1705486244901,-500.0,0.00021917,2]
[311881010,1705486244914,-530.07,0.00021917,2]
[311881012,1705486244928,-735.85,0.00021917,2]
[311881015,1705486244940,-500.0,0.00021917,2]
[311881017,1705486244954,-632.6,0.00021917,2]
[311881021,1705486244980,-500.0,0.00021917,2]
[311881023,1705486244992,-500.0,0.00021917,2]
[311881025,1705486245004,-989.53,0.00021917,2]
[311881028,1705486245016,-2889.17,0.00021917,2]
[311881030,1705486245028,-711.62,0.00021917,2]
[311881032,1705486245040,-500.0,0.00021917,2]
[311881035,1705486245052,-351.79841003,0.00021917,2]
[311881037,1705486245065,-500.0,0.00021917,2]
[311881039,1705486245077,-512.7098136,0.00021917,2]
[311881042,1705486245089,-500.0,0.00021917,2]
[311881044,1705486245102,-871.27,0.00021917,2]
[311881046,1705486245114,-500.0,0.00021917,2]
[311881049,1705486245126,-536.77,0.00021917,2]
[311881051,1705486245139,-985.18,0.00021917,2]
[311881054,1705486245152,-2036.64,0.00021917,2]
[311881056,1705486245169,-500.0,0.00021917,2]
[311881059,1705486245184,-500.0,0.00021917,2]
[311881061,1705486245200,-950.48,0.00021917,2]
[311881064,1705486245214,-3766.67,0.00021917,5]
[311881066,1705486245229,-500.0,0.00021917,2]
[311881069,1705486245244,-500.0,0.00021917,2]
[311881071,1705486245257,-500.0,0.00021917,2]
[311881074,1705486245271,-943.8,0.00021917,2]
[311881076,1705486245285,-500.0,0.00021917,2]
[311881079,1705486245299,-587.65,0.00021917,2]
[311881081,1705486245313,-590.35,0.00021917,2]
[311881084,1705486245329,-548.55,0.00021917,2]
[311881086,1705486245342,-500.0,0.00021917,2]
[311881089,1705486245356,-500.0,0.00021917,2]
[311881091,1705486245370,-665.7,0.00021917,2]
[311881094,1705486245382,-2657.38,0.00021917,2]
[311881096,1705486245394,-500.0,0.00021917,2]
[311881098,1705486245406,-500.0,0.00021917,2]
[311881101,1705486245418,-1684.03,0.00021917,2]
[311881103,1705486245431,-500.0,0.00021917,2]